[Event "*** Titled Tuesday Blitz"]
[Site "Chess.com"]
[Date "2020.03.03"]
[Round "5"]
[White "davigator"]
[Black "Gogolev_Artemy"]
[Result "1-0"]
[WhiteElo "2311"]
[BlackElo "2450"]
[TimeControl "180+1"]
[EndTime "13:50:53 PST"]
[Termination "davigator won by resignation"]

1. e4 {[%clk 0:03:00.9]} 1... c5 {[%clk 0:02:50.4]} 2. Nf3 {[%clk 0:03:00.1]}
2... d6 {[%clk 0:02:49.1]} 3. d4 {[%clk 0:02:59.9]} 3... cxd4 {[%clk 0:02:48.7]}
4. Nxd4 {[%clk 0:03:00.2]} 4... Nf6 {[%clk 0:02:48.5]} 5. Nc3 {[%clk 0:03:00.3]}
5... a6 {[%clk 0:02:48.2]} 6. Bg5 {[%clk 0:03:00]} 6... e6 {[%clk 0:02:44.6]} 7.
f4 {[%clk 0:02:56.6]} 7... Be7 {[%clk 0:02:41.2]} 8. Qd2 {[%clk 0:02:56]} 8...
Qc7 {[%clk 0:02:40.4]} 9. O-O-O {[%clk 0:02:55.3]} 9... b5 {[%clk 0:02:32.9]}
10. Bd3 {[%clk 0:02:54.1]} 10... Bb7 {[%clk 0:02:32]} 11. a3 {[%clk 0:02:53.7]}
11... Nbd7 {[%clk 0:02:31.1]} 12. Rhe1 {[%clk 0:02:52.4]} 12... Nc5 {[%clk
0:02:21.1]} 13. Kb1 {[%clk 0:02:52]} 13... Rc8 {[%clk 0:02:19.6]} 14. Nf3 {[%clk
0:02:37.1]} 14... d5 {[%clk 0:02:08.5]} 15. e5 {[%clk 0:02:32.2]} 15... Nfe4
{[%clk 0:02:07.4]} 16. Bxe4 {[%clk 0:02:29.6]} 16... Nxe4 {[%clk 0:02:05.4]} 17.
Nxe4 {[%clk 0:02:28.7]} 17... dxe4 {[%clk 0:02:05.8]} 18. Bxe7 {[%clk 0:02:26]}
18... Qxe7 {[%clk 0:02:05.5]} 19. Ng5 {[%clk 0:02:22.4]} 19... Rc4 {[%clk
0:01:54.7]} 20. b3 {[%clk 0:02:11.5]} 20... Rc7 {[%clk 0:01:46.6]} 21. Kb2
{[%clk 0:02:09]} 21... O-O {[%clk 0:01:44.4]} 22. Nxe4 {[%clk 0:02:08.3]} 22...
Rfc8 {[%clk 0:01:35.7]} 23. Rc1 {[%clk 0:02:05.4]} 23... Bxe4 {[%clk 0:01:30]}
24. Rxe4 {[%clk 0:02:04.7]} 24... Qc5 {[%clk 0:01:29.9]} 25. Rd4 {[%clk
0:01:59.4]} 25... h6 {[%clk 0:01:26.8]} 26. b4 {[%clk 0:01:51.8]} 26... Qc6
{[%clk 0:01:25.3]} 27. g3 {[%clk 0:01:48.8]} 27... Qf3 {[%clk 0:01:19.3]} 28.
Rd8+ {[%clk 0:01:44.3]} 28... Kh7 {[%clk 0:01:14.7]} 29. Rxc8 {[%clk 0:01:42.1]}
29... Rxc8 {[%clk 0:01:11.1]} 30. Qd3+ {[%clk 0:01:42.1]} 30... Qxd3 {[%clk
0:01:10.7]} 31. cxd3 {[%clk 0:01:43]} 31... Rxc1 {[%clk 0:01:09.4]} 32. Kxc1
{[%clk 0:01:42.4]} 32... g5 {[%clk 0:01:09.4]} 33. Kd2 {[%clk 0:01:41.4]} 33...
Kg6 {[%clk 0:01:09.8]} 34. Ke3 {[%clk 0:01:38.7]} 34... Kf5 {[%clk 0:01:03.2]}
35. Kf3 {[%clk 0:01:38.6]} 35... h5 {[%clk 0:01:01.4]} 36. h3 {[%clk 0:01:35.5]}
36... g4+ {[%clk 0:00:54]} 37. hxg4+ {[%clk 0:01:34.9]} 37... hxg4+ {[%clk
0:00:54.9]} 38. Ke3 {[%clk 0:01:34.8]} 38... Kg6 {[%clk 0:00:45.9]} 39. Ke4
{[%clk 0:01:34.4]} 39... Kg7 {[%clk 0:00:44.2]} 40. d4 {[%clk 0:01:29.3]} 40...
Kf8 {[%clk 0:00:42.3]} 41. d5 {[%clk 0:01:28.8]} 41... Ke7 {[%clk 0:00:39.9]}
42. d6+ {[%clk 0:01:27.8]} 42... Kd7 {[%clk 0:00:39.9]} 43. f5 {[%clk
0:01:28.7]} 43... Kc6 {[%clk 0:00:37.9]} 44. fxe6 {[%clk 0:01:27.7]} 44... fxe6
{[%clk 0:00:38.8]} 45. Kf4 {[%clk 0:01:28.1]} 45... a5 {[%clk 0:00:38.8]} 46.
Kxg4 {[%clk 0:01:27.3]} 1-0

[Event "*** Titled Tuesday Blitz"]
[Site "Chess.com"]
[Date "2020.03.03"]
[Round "5"]
[White "kismet6"]
[Black "Resignify"]
[Result "0-1"]
[WhiteElo "1983"]
[BlackElo "2212"]
[TimeControl "180+1"]
[EndTime "13:50:54 PST"]
[Termination "Resignify won by resignation"]

1. e4 {[%clk 0:02:54]} 1... d6 {[%clk 0:03:00]} 2. d4 {[%clk 0:02:48.2]} 2...
Nf6 {[%clk 0:03:00]} 3. Nc3 {[%clk 0:02:42.3]} 3... g6 {[%clk 0:02:59.6]} 4. Be3
{[%clk 0:02:37.9]} 4... Bg7 {[%clk 0:02:55.2]} 5. f3 {[%clk 0:02:37.6]} 5...
Nbd7 {[%clk 0:02:47.5]} 6. Qd2 {[%clk 0:02:28.8]} 6... h6 {[%clk 0:02:45.9]} 7.
O-O-O {[%clk 0:02:26.8]} 7... c6 {[%clk 0:02:37.9]} 8. g4 {[%clk 0:02:01.7]}
8... e5 {[%clk 0:02:22.7]} 9. g5 {[%clk 0:01:57.6]} 9... hxg5 {[%clk 0:02:21.6]}
10. Bxg5 {[%clk 0:01:55.2]} 10... Qa5 {[%clk 0:02:11.4]} 11. Kb1 {[%clk
0:01:54.4]} 11... exd4 {[%clk 0:02:01]} 12. Qxd4 {[%clk 0:01:53.1]} 12... Qxg5
{[%clk 0:01:59.2]} 13. Qxd6 {[%clk 0:01:49.4]} 13... Qc5 {[%clk 0:01:36.5]} 14.
Qd2 {[%clk 0:01:44]} 14... O-O {[%clk 0:01:29.1]} 15. h4 {[%clk 0:01:42.3]}
15... Ne5 {[%clk 0:01:22]} 16. f4 {[%clk 0:01:35.3]} 16... Nc4 {[%clk 0:01:15]}
17. Qe2 {[%clk 0:01:21.8]} 17... Nxb2 {[%clk 0:01:11.6]} 18. Kxb2 {[%clk
0:01:15]} 18... Qb4+ {[%clk 0:01:10.3]} 19. Kc1 {[%clk 0:00:56.1]} 19... Qxc3
{[%clk 0:01:06.7]} 20. e5 {[%clk 0:00:44.7]} 20... Bg4 {[%clk 0:01:01.3]} 21.
exf6 {[%clk 0:00:26.2]} 21... Bxe2 {[%clk 0:00:57.4]} 22. fxg7 {[%clk
0:00:24.7]} 22... Qa1+ {[%clk 0:00:52.5]} 23. Kd2 {[%clk 0:00:21.3]} 23... Qxd1+
{[%clk 0:00:50.2]} 0-1

[Event "*** Titled Tuesday Blitz"]
[Site "Chess.com"]
[Date "2020.03.03"]
[Round "5"]
[White "JoakimVonAnd"]
[Black "Megagigahiper3345"]
[Result "1/2-1/2"]
[WhiteElo "2525"]
[BlackElo "2124"]
[TimeControl "180+1"]
[EndTime "13:50:56 PST"]
[Termination "Game drawn by repetition"]

1. d4 {[%clk 0:03:00.9]} 1... d5 {[%clk 0:02:59.4]} 2. Nf3 {[%clk 0:03:01.2]}
2... Nf6 {[%clk 0:02:57.9]} 3. Bf4 {[%clk 0:03:01.8]} 3... c5 {[%clk 0:02:51.9]}
4. c3 {[%clk 0:03:01]} 4... Qb6 {[%clk 0:02:50.5]} 5. Qb3 {[%clk 0:02:59.6]}
5... Nc6 {[%clk 0:02:50.6]} 6. Qxb6 {[%clk 0:02:56.2]} 6... axb6 {[%clk
0:02:50.3]} 7. e3 {[%clk 0:02:56.8]} 7... c4 {[%clk 0:02:48.5]} 8. Na3 {[%clk
0:02:49.1]} 8... Ra5 {[%clk 0:02:48.2]} 9. Nc2 {[%clk 0:02:44.1]} 9... Bf5
{[%clk 0:02:44]} 10. Nb4 {[%clk 0:02:39.4]} 10... Nxb4 {[%clk 0:02:42.3]} 11.
cxb4 {[%clk 0:02:40.3]} 11... Ra4 {[%clk 0:02:40.5]} 12. a3 {[%clk 0:02:37.1]}
12... e6 {[%clk 0:02:34.2]} 13. b3 {[%clk 0:02:34.8]} 13... Bxb4+ {[%clk
0:02:02.6]} 14. Kd1 {[%clk 0:02:33.4]} 14... cxb3 {[%clk 0:01:59.6]} 15. Bb5+
{[%clk 0:02:31.3]} 15... Kd8 {[%clk 0:01:53.2]} 16. Bxa4 {[%clk 0:02:27.8]}
16... b2 {[%clk 0:01:46.3]} 17. Ke2 {[%clk 0:02:27.6]} 17... bxa1=Q {[%clk
0:01:39.6]} 18. Rxa1 {[%clk 0:02:28.5]} 18... Be7 {[%clk 0:01:23.1]} 19. Rc1
{[%clk 0:02:22.6]} 19... Ne8 {[%clk 0:01:20.1]} 20. Ne5 {[%clk 0:02:19.7]} 20...
Bg6 {[%clk 0:01:19.9]} 21. Bd7 {[%clk 0:02:09.6]} 21... Nd6 {[%clk 0:01:07.2]}
22. Nxg6 {[%clk 0:02:09.1]} 22... hxg6 {[%clk 0:01:02.4]} 23. Bxd6 {[%clk
0:02:08.5]} 23... Kxd7 {[%clk 0:00:49.4]} 24. Bxe7 {[%clk 0:02:07.8]} 24... Kxe7
{[%clk 0:00:50]} 25. Rc7+ {[%clk 0:02:08.3]} 25... Kf6 {[%clk 0:00:36.3]} 26.
Rxb7 {[%clk 0:02:07.2]} 26... Rxh2 {[%clk 0:00:36.7]} 27. g3 {[%clk 0:02:06.2]}
27... Rh8 {[%clk 0:00:33.5]} 28. Rxb6 {[%clk 0:02:05.8]} 28... Ra8 {[%clk
0:00:34.2]} 29. Rb3 {[%clk 0:02:05.8]} 29... Kf5 {[%clk 0:00:34.2]} 30. f3
{[%clk 0:02:05.9]} 30... g5 {[%clk 0:00:34.2]} 31. g4+ {[%clk 0:02:05.2]} 31...
Kg6 {[%clk 0:00:33.5]} 32. Kd2 {[%clk 0:02:04.6]} 32... f5 {[%clk 0:00:29.7]}
33. gxf5+ {[%clk 0:02:03.2]} 33... Kxf5 {[%clk 0:00:28.3]} 34. Kc2 {[%clk
0:02:01.4]} 34... g4 {[%clk 0:00:28.6]} 35. fxg4+ {[%clk 0:02:01.3]} 35... Kxg4
{[%clk 0:00:29.5]} 36. Kb2 {[%clk 0:02:01]} 36... g5 {[%clk 0:00:29.7]} 37. Rb6
{[%clk 0:01:59]} 37... Kf5 {[%clk 0:00:29.2]} 38. Rb7 {[%clk 0:01:59.1]} 38...
Ke4 {[%clk 0:00:28]} 39. Re7 {[%clk 0:01:58]} 39... Kxe3 {[%clk 0:00:28.3]} 40.
Rxe6+ {[%clk 0:01:58.2]} 40... Kxd4 {[%clk 0:00:29]} 41. Rg6 {[%clk 0:01:58.8]}
41... Rb8+ {[%clk 0:00:25.3]} 42. Kc2 {[%clk 0:01:57.8]} 42... Rc8+ {[%clk
0:00:23.3]} 43. Kd2 {[%clk 0:01:57]} 43... Ra8 {[%clk 0:00:21.4]} 44. Rxg5
{[%clk 0:01:56.1]} 44... Rxa3 {[%clk 0:00:22]} 45. Rg4+ {[%clk 0:01:55.8]} 45...
Kc5 {[%clk 0:00:22.5]} 46. Rg5 {[%clk 0:01:55.8]} 46... Rh3 {[%clk 0:00:22.9]}
47. Rg4 {[%clk 0:01:55.3]} 47... d4 {[%clk 0:00:22.7]} 48. Rg8 {[%clk 0:01:51]}
48... Rh2+ {[%clk 0:00:21.9]} 49. Kd3 {[%clk 0:01:50.5]} 49... Rh3+ {[%clk
0:00:22.4]} 50. Kd2 {[%clk 0:01:50.5]} 50... Rh5 {[%clk 0:00:13.8]} 51. Kd3
{[%clk 0:01:47.8]} 51... Rh3+ {[%clk 0:00:13.4]} 52. Kd2 {[%clk 0:01:47.7]}
1/2-1/2

[Event "*** Titled Tuesday Blitz"]
[Site "Chess.com"]
[Date "2020.03.03"]
[Round "5"]
[White "VeraNebolsina"]
[Black "DonBroca"]
[Result "1-0"]
[WhiteElo "2330"]
[BlackElo "2037"]
[TimeControl "180+1"]
[EndTime "13:50:57 PST"]
[Termination "VeraNebolsina won on time"]

1. e4 {[%clk 0:03:00.9]} 1... c5 {[%clk 0:02:15]} 2. Nc3 {[%clk 0:02:59.1]} 2...
d6 {[%clk 0:02:09.3]} 3. Bc4 {[%clk 0:02:56.6]} 3... e6 {[%clk 0:01:58.8]} 4. f4
{[%clk 0:02:44.2]} 4... Nc6 {[%clk 0:01:43]} 5. Nf3 {[%clk 0:02:43.3]} 5... a6
{[%clk 0:01:24.8]} 6. a4 {[%clk 0:02:38.8]} 6... g6 {[%clk 0:01:24.1]} 7. O-O
{[%clk 0:02:34.3]} 7... Bg7 {[%clk 0:01:23.7]} 8. d3 {[%clk 0:02:34]} 8... Nge7
{[%clk 0:01:23.5]} 9. Qe1 {[%clk 0:02:25]} 9... h6 {[%clk 0:01:23.8]} 10. Qh4
{[%clk 0:01:56.8]} 10... f5 {[%clk 0:01:21.8]} 11. exf5 {[%clk 0:01:38.9]} 11...
Nxf5 {[%clk 0:01:22.7]} 12. Qg4 {[%clk 0:01:31.3]} 12... Qf6 {[%clk 0:01:02.5]}
13. Ne4 {[%clk 0:01:21.4]} 13... Qf7 {[%clk 0:00:48.7]} 14. Qxf5 {[%clk
0:01:17.6]} 14... Qxf5 {[%clk 0:00:27.4]} 15. Nxd6+ {[%clk 0:01:17.3]} 15... Kd8
{[%clk 0:00:27.9]} 16. Nxf5 {[%clk 0:01:16.5]} 16... gxf5 {[%clk 0:00:28.8]} 17.
Re1 {[%clk 0:01:11.2]} 17... Nd4 {[%clk 0:00:18.6]} 18. Nxd4 {[%clk 0:01:10.4]}
18... Bxd4+ {[%clk 0:00:19.5]} 19. Kf1 {[%clk 0:01:05.9]} 19... Ke7 {[%clk
0:00:11.2]} 20. c3 {[%clk 0:01:04.1]} 20... Bf6 {[%clk 0:00:07.5]} 21. Be3
{[%clk 0:01:03.1]} 21... b6 {[%clk 0:00:07.1]} 22. a5 {[%clk 0:01:03.2]} 22...
Bb7 {[%clk 0:00:06.4]} 23. axb6 {[%clk 0:01:01.3]} 23... Rhg8 {[%clk 0:00:07]}
24. Bxc5+ {[%clk 0:01:00.3]} 24... Kd8 {[%clk 0:00:02.9]} 25. g3 {[%clk
0:00:59.5]} 25... h5 {[%clk 0:00:01.2]} 26. Rxe6 {[%clk 0:00:57]} 1-0

[Event "*** Titled Tuesday Blitz"]
[Site "Chess.com"]
[Date "2020.03.03"]
[Round "5"]
[White "champ2005"]
[Black "RoelandPruijssers"]
[Result "1-0"]
[WhiteElo "2971"]
[BlackElo "2678"]
[TimeControl "180+1"]
[EndTime "13:51:04 PST"]
[Termination "champ2005 won by checkmate"]

1. f4 {[%clk 0:03:00.9]} 1... h6 {[%clk 0:02:50.1]} 2. Nf3 {[%clk 0:03:00.6]}
2... g5 {[%clk 0:02:46.9]} 3. fxg5 {[%clk 0:03:00.1]} 3... hxg5 {[%clk 0:02:47]}
4. Nxg5 {[%clk 0:02:59.3]} 4... e5 {[%clk 0:02:46.9]} 5. d3 {[%clk 0:02:52.8]}
5... Be7 {[%clk 0:02:45.6]} 6. Nf3 {[%clk 0:02:52.4]} 6... Nc6 {[%clk
0:02:41.2]} 7. e4 {[%clk 0:02:47.8]} 7... d5 {[%clk 0:02:33.5]} 8. exd5 {[%clk
0:02:45.7]} 8... Qxd5 {[%clk 0:02:34]} 9. Nc3 {[%clk 0:02:45.6]} 9... Qd6 {[%clk
0:02:29.6]} 10. Be3 {[%clk 0:02:42.9]} 10... Bg4 {[%clk 0:02:27]} 11. Be2 {[%clk
0:02:40.7]} 11... O-O-O {[%clk 0:02:18.6]} 12. Qd2 {[%clk 0:02:35.5]} 12... Qg6
{[%clk 0:01:58.4]} 13. O-O-O {[%clk 0:02:30.8]} 13... Nd4 {[%clk 0:01:50.9]} 14.
Nxe5 {[%clk 0:02:21.9]} 14... Nxe2+ {[%clk 0:01:46.7]} 15. Nxe2 {[%clk 0:02:20]}
15... Qe6 {[%clk 0:01:46.3]} 16. Nxg4 {[%clk 0:02:16.8]} 16... Qxa2 {[%clk
0:01:35.4]} 17. Qc3 {[%clk 0:01:48.6]} 17... Rh4 {[%clk 0:01:31.1]} 18. h3
{[%clk 0:01:42.9]} 18... f5 {[%clk 0:01:29.8]} 19. g3 {[%clk 0:01:38]} 19... Rh5
{[%clk 0:01:25.4]} 20. Bf4 {[%clk 0:01:23.7]} 20... c6 {[%clk 0:01:15.5]} 21.
Ne3 {[%clk 0:01:15.2]} 21... Nf6 {[%clk 0:01:10.5]} 22. Qe5 {[%clk 0:01:05.8]}
22... Qa1+ {[%clk 0:00:32.4]} 23. Kd2 {[%clk 0:01:05.4]} 23... Ne4+ {[%clk
0:00:24]} 24. Ke1 {[%clk 0:01:00.5]} 24... Bb4+ {[%clk 0:00:23.2]} 25. c3 {[%clk
0:00:53.1]} 25... Qxd1+ {[%clk 0:00:12.6]} 26. Nxd1 {[%clk 0:00:47.9]} 26... Nf2
{[%clk 0:00:13.5]} 27. Qc7# {[%clk 0:00:46.6]} 1-0

[Event "*** Titled Tuesday Blitz"]
[Site "Chess.com"]
[Date "2020.03.03"]
[Round "5"]
[White "Maikrosoft63"]
[Black "DonPreuss"]
[Result "1-0"]
[WhiteElo "2579"]
[BlackElo "2204"]
[TimeControl "180+1"]
[EndTime "13:51:04 PST"]
[Termination "Maikrosoft63 won by resignation"]

1. e4 {[%clk 0:03:00.9]} 1... Nc6 {[%clk 0:02:56]} 2. Nf3 {[%clk 0:02:58.1]}
2... d6 {[%clk 0:02:54.9]} 3. d4 {[%clk 0:02:54]} 3... g6 {[%clk 0:02:55.2]} 4.
Nc3 {[%clk 0:02:49.7]} 4... Bg7 {[%clk 0:02:55.3]} 5. h3 {[%clk 0:02:48.7]} 5...
e5 {[%clk 0:02:55.2]} 6. Be3 {[%clk 0:02:41.3]} 6... exd4 {[%clk 0:02:45.1]} 7.
Nxd4 {[%clk 0:02:39.8]} 7... Nge7 {[%clk 0:02:45.1]} 8. Bc4 {[%clk 0:02:35.9]}
8... O-O {[%clk 0:02:30]} 9. Qd2 {[%clk 0:02:35.7]} 9... Ne5 {[%clk 0:02:29.7]}
10. Bb3 {[%clk 0:02:34.2]} 10... c5 {[%clk 0:02:29.5]} 11. Nf3 {[%clk 0:02:31]}
11... Nxf3+ {[%clk 0:02:20.4]} 12. gxf3 {[%clk 0:02:30.8]} 12... Be6 {[%clk
0:02:19]} 13. Bxe6 {[%clk 0:02:28.9]} 13... fxe6 {[%clk 0:02:18.8]} 14. O-O-O
{[%clk 0:02:28.3]} 14... d5 {[%clk 0:02:04.5]} 15. Bxc5 {[%clk 0:02:24.5]} 15...
Qc7 {[%clk 0:01:55.8]} 16. Bxe7 {[%clk 0:02:20.2]} 16... Qxe7 {[%clk 0:01:55.7]}
17. exd5 {[%clk 0:02:20.7]} 17... Rac8 {[%clk 0:01:20.6]} 18. Ne4 {[%clk
0:02:09.4]} 18... Rfd8 {[%clk 0:01:02.5]} 19. d6 {[%clk 0:02:06.3]} 19... Qh4
{[%clk 0:01:01.2]} 20. Qd3 {[%clk 0:01:55.3]} 20... Qf4+ {[%clk 0:00:53.8]} 21.
Kb1 {[%clk 0:01:55.2]} 21... Rc6 {[%clk 0:00:49.9]} 22. Qb3 {[%clk 0:01:52.2]}
22... Rb6 {[%clk 0:00:31.3]} 23. Qxe6+ {[%clk 0:01:51.1]} 23... Kh8 {[%clk
0:00:31.5]} 24. c3 {[%clk 0:01:45.8]} 24... Qxf3 {[%clk 0:00:28.8]} 25. Qe7
{[%clk 0:01:18.1]} 25... Qf8 {[%clk 0:00:13.4]} 26. Ng5 {[%clk 0:01:04.4]} 26...
Rbxd6 {[%clk 0:00:10.2]} 27. Nf7+ {[%clk 0:01:01.8]} 27... Qxf7 {[%clk
0:00:09.2]} 28. Qxf7 {[%clk 0:00:59.4]} 28... Rxd1+ {[%clk 0:00:09.2]} 29. Rxd1
{[%clk 0:01:00.3]} 29... Rxd1+ {[%clk 0:00:09.4]} 30. Kc2 {[%clk 0:01:00.9]}
30... Rd8 {[%clk 0:00:08.9]} 31. Qxb7 {[%clk 0:01:00.5]} 1-0

[Event "*** Titled Tuesday Blitz"]
[Site "Chess.com"]
[Date "2020.03.03"]
[Round "5"]
[White "Mikhail_Golubev"]
[Black "Rubinstein_Akiba"]
[Result "1-0"]
[WhiteElo "2506"]
[BlackElo "2332"]
[TimeControl "180+1"]
[EndTime "13:51:11 PST"]
[Termination "Mikhail_Golubev won by checkmate"]

1. e4 {[%clk 0:03:00.9]} 1... c5 {[%clk 0:02:58]} 2. Nf3 {[%clk 0:03:00.2]} 2...
d6 {[%clk 0:02:57.3]} 3. d4 {[%clk 0:03:00.1]} 3... cxd4 {[%clk 0:02:58.2]} 4.
Nxd4 {[%clk 0:03:00.2]} 4... Nf6 {[%clk 0:02:58.7]} 5. Nc3 {[%clk 0:03:00.4]}
5... a6 {[%clk 0:02:59.3]} 6. Bc4 {[%clk 0:02:59.5]} 6... e6 {[%clk 0:02:59.1]}
7. Bb3 {[%clk 0:02:59.6]} 7... b5 {[%clk 0:02:59.2]} 8. O-O {[%clk 0:02:57]}
8... Nbd7 {[%clk 0:02:58.6]} 9. Re1 {[%clk 0:02:53.4]} 9... Nc5 {[%clk
0:02:57.9]} 10. Bd5 {[%clk 0:02:47.9]} 10... Bb7 {[%clk 0:02:34.8]} 11. b4
{[%clk 0:02:43.2]} 11... exd5 {[%clk 0:02:06.9]} 12. exd5+ {[%clk 0:02:39.5]}
12... Kd7 {[%clk 0:02:06.8]} 13. bxc5 {[%clk 0:02:37.7]} 13... dxc5 {[%clk
0:02:07.7]} 14. Nc6 {[%clk 0:02:28.3]} 14... Bxc6 {[%clk 0:02:06.4]} 15. dxc6+
{[%clk 0:02:24.9]} 15... Kxc6 {[%clk 0:02:07.3]} 16. Qf3+ {[%clk 0:02:21]} 16...
Kb6 {[%clk 0:02:06.3]} 17. Bg5 {[%clk 0:02:10.3]} 17... Ka7 {[%clk 0:01:35]} 18.
a4 {[%clk 0:02:07.6]} 18... b4 {[%clk 0:01:33.7]} 19. Rad1 {[%clk 0:02:03.4]}
19... Qc7 {[%clk 0:01:24.7]} 20. Nd5 {[%clk 0:01:47.2]} 20... Nxd5 {[%clk
0:01:12.8]} 21. Rxd5 {[%clk 0:01:46.9]} 21... f6 {[%clk 0:01:00.2]} 22. Bf4
{[%clk 0:01:23.2]} 22... Qb7 {[%clk 0:00:57.9]} 23. Qd3 {[%clk 0:00:55.7]} 23...
Kb6 {[%clk 0:00:45.7]} 24. Re6+ {[%clk 0:00:40.7]} 24... Ka5 {[%clk 0:00:43.8]}
25. Rd7 {[%clk 0:00:39.6]} 25... Qc8 {[%clk 0:00:27.5]} 26. Bc7+ {[%clk
0:00:39.2]} 26... Kxa4 {[%clk 0:00:20.5]} 27. Qb3+ {[%clk 0:00:35.3]} 27... Kb5
{[%clk 0:00:20.5]} 28. c4# {[%clk 0:00:35.2]} 1-0

[Event "*** Titled Tuesday Blitz"]
[Site "Chess.com"]
[Date "2020.03.03"]
[Round "5"]
[White "floplover"]
[Black "secretsuperstar7"]
[Result "0-1"]
[WhiteElo "2340"]
[BlackElo "2207"]
[TimeControl "180+1"]
[EndTime "13:51:11 PST"]
[Termination "secretsuperstar7 won on time"]

1. d4 {[%clk 0:03:00.9]} 1... Nf6 {[%clk 0:02:58.8]} 2. c4 {[%clk 0:03:00.8]}
2... e6 {[%clk 0:02:57.5]} 3. Nc3 {[%clk 0:03:00.9]} 3... Bb4 {[%clk 0:02:54]}
4. Qc2 {[%clk 0:03:00.5]} 4... d5 {[%clk 0:02:46.6]} 5. cxd5 {[%clk 0:03:00]}
5... exd5 {[%clk 0:02:44]} 6. Bg5 {[%clk 0:02:57.3]} 6... O-O {[%clk 0:02:40.9]}
7. Nf3 {[%clk 0:02:48.5]} 7... Be6 {[%clk 0:02:40]} 8. e3 {[%clk 0:02:46.2]}
8... Nbd7 {[%clk 0:02:38.1]} 9. Bd3 {[%clk 0:02:45.3]} 9... h6 {[%clk
0:02:36.9]} 10. Bh4 {[%clk 0:02:45.3]} 10... Rc8 {[%clk 0:02:33.1]} 11. Qa4
{[%clk 0:02:23.1]} 11... c5 {[%clk 0:02:25.3]} 12. O-O {[%clk 0:02:16.4]} 12...
a6 {[%clk 0:02:08.7]} 13. a3 {[%clk 0:02:04.8]} 13... cxd4 {[%clk 0:02:01.8]}
14. Qxb4 {[%clk 0:01:34.7]} 14... dxc3 {[%clk 0:02:00.6]} 15. bxc3 {[%clk
0:01:35.4]} 15... Qc7 {[%clk 0:01:56.2]} 16. Rac1 {[%clk 0:01:22.7]} 16... b5
{[%clk 0:01:51.9]} 17. Nd4 {[%clk 0:01:20]} 17... Qc5 {[%clk 0:01:49.1]} 18. Qb2
{[%clk 0:01:18.4]} 18... Ne5 {[%clk 0:01:42.1]} 19. Be2 {[%clk 0:01:10.8]} 19...
Ne4 {[%clk 0:01:40.8]} 20. f4 {[%clk 0:01:04.4]} 20... Nc4 {[%clk 0:01:34.4]}
21. Bxc4 {[%clk 0:00:59.5]} 21... Qxc4 {[%clk 0:01:31.6]} 22. f5 {[%clk
0:01:00.4]} 22... Bd7 {[%clk 0:01:30.5]} 23. f6 {[%clk 0:00:40.3]} 23... g6
{[%clk 0:01:27.7]} 24. Qc2 {[%clk 0:00:20.1]} 24... Qxc3 {[%clk 0:01:22.5]} 25.
Qd1 {[%clk 0:00:13.5]} 25... Qxe3+ {[%clk 0:01:21.7]} 26. Kh1 {[%clk 0:00:13.3]}
26... Rxc1 {[%clk 0:01:20.1]} 27. Qxc1 {[%clk 0:00:11.5]} 27... Qxd4 {[%clk
0:01:20.1]} 28. Qxh6 {[%clk 0:00:08.8]} 28... Nf2+ {[%clk 0:01:10.9]} 29. Kg1
{[%clk 0:00:02.8]} 29... Ng4+ {[%clk 0:01:07.5]} 30. Bf2 {[%clk 0:00:01.7]}
30... Nxh6 {[%clk 0:01:06.4]} 31. Bxd4 {[%clk 0:00:01.3]} 31... Nf5 {[%clk
0:01:06.4]} 0-1